lending/lending_fUSD_20240723
["ID","MTS","AMOUNT","RATE_DAILY","PERIOD"]
[333005875,1721741446697,-1331.93059999,0.00011,2]
[333005876,1721741446709,-4883.9047737,0.00011,2]
[333005877,1721741446720,-3224.0758753,0.00011,2]
[333005878,1721741446731,-51066.5438173,0.00011,2]
[333005879,1721741446743,-333.44707611,0.00011,2]
[333007667,1721741798347,377.71,8.219e-05,2]
[333007668,1721741817602,200.0,8.178e-05,30]
[333007669,1721741817654,212.3096312,8.178e-05,30]
[333007673,1721742005071,250.0,8.943e-05,2]
[333007674,1721742065616,1000.0,8.929e-05,2]
[333007679,1721742349807,358.82,8.219e-05,2]
[333007682,1721742633587,-250.0,9.07e-05,2]
[333007683,1721742633597,-553.0,9.294e-05,2]
[333007684,1721742633607,-515.16255299,9.295e-05,2]
[333007685,1721742633616,-290.04605524,9.323e-05,2]
[333007686,1721742633626,-251.70802743,9.352e-05,2]
[333007687,1721742633635,-254.7111042,9.399e-05,2]
[333007688,1721742633645,-150.36157517,9.427e-05,2]
[333007689,1721742633655,-153.78556041,9.506e-05,2]
[333007690,1721742633664,-150.0,9.562e-05,2]
[333007691,1721742633675,-151.05,9.6e-05,2]
[333007692,1721742633685,-151.32323002,9.642e-05,2]
[333007693,1721742633695,-290.04605524,9.773e-05,2]
[333007694,1721742633705,-644.32770328,9.785e-05,2]
[333007695,1721742633714,-160.37190597,9.79e-05,2]
[333007696,1721742633724,-150.36157517,9.885e-05,2]
[333007697,1721742633734,-151.32323002,9.895e-05,2]
[333007698,1721742634089,-254.7111042,9.939e-05,2]
[333007699,1721742634099,-10090.967,9.973e-05,2]
[333007700,1721742634110,-165.35269093,9.99e-05,2]
[333007701,1721742634121,-1026.66982016,9.999e-05,2]
[333007702,1721742634131,-150.0,9.999e-05,2]
[333007703,1721742634141,-17311.12080957,0.0001,2]
[333007704,1721742634154,-3322.744336,0.0001,2]
[333007705,1721742634662,-553.0,0.0001,2]
[333007706,1721742634675,-825.77885809,0.0001,2]
[333007713,1721742638479,-33255.00000004,0.0001,2]
[333007714,1721742638490,-1661.72685,0.0001,2]
[333007715,1721742638503,-3130.47080215,0.0001,2]
[333007716,1721742638518,-540.65357155,0.0001,2]
[333007717,1721742638598,-56758.03472661,0.0001,2]
[333007718,1721742638611,-18963.915,0.0001,2]
[333007719,1721742638623,-986.42890621,0.0001,2]
[333007882,1721742640248,-1424.97241639,0.0001,2]
[333007886,1721742640264,-261.06328603,0.0001,2]
[333007902,1721742640386,-9442.3382266,0.0001,2]
[333007905,1721742640398,-3883.1601287,0.0001,2]
[333007907,1721742640411,-5489.0451557,0.0001,2]
[333007909,1721742640423,-38874.19279709,0.0001,2]
[333007911,1721742640434,-8264.57691264,0.0001,2]
[333007914,1721742640452,-1963.25914205,0.0001,2]
[333007916,1721742640464,-819.45729106,0.0001,2]
[333007939,1721742640683,-361.69609304,0.0001,2]
[333007940,1721742640695,-1417.45064127,0.0001,2]
[333007941,1721742640707,-3569.6177846,0.0001,2]
[333007942,1721742640718,-5873.89872731,0.0001,2]
[333007943,1721742640729,-332.32199,0.0001,2]
[333007944,1721742640747,-566.18888113,0.0001,2]
[333007945,1721742640814,-255.25523152,0.0001,2]
[333008223,1721742643399,-2051.96602235,0.0001,2]
[333008226,1721742643411,-6855.90067227,0.0001,2]
[333008228,1721742643422,-2927.86002,0.0001,2]
[333008230,1721742643434,-3265.75139563,0.0001,2]
[333008232,1721742643445,-53005.6,0.0001,2]
[333008240,1721742643520,-651.33802245,0.0001,2]
[333008243,1721742643532,-4112.61326764,0.0001,2]
[333008245,1721742643543,-1746.04129229,0.0001,2]
[333008247,1721742643556,-75635.56074202,0.0001,2]
[333008249,1721742643566,-251.70802743,0.00010007,2]
[333008251,1721742643576,-1000.0,0.00010045,2]
[333008253,1721742643586,-160.45083347,0.00010116,2]
[333008255,1721742643595,-644.32770328,0.00010195,2]
[333008257,1721742643604,-11495.0,0.000102,3]
[333008259,1721742643615,-515.16255299,0.0001021,2]
[333008261,1721742643624,-156.73974447,0.00010239,2]
[333008263,1721742643635,-166.66666666,0.00010324,2]
[333008265,1721742643645,-515.16255299,0.00010383,2]
[333008267,1721742643655,-251.70802743,0.00010392,2]
[333008269,1721742643666,-11495.0,0.000104,5]
[333008271,1721742643675,-152.53046895,0.00010465,2]
[333008273,1721742643685,-358.82,0.0001048,2]
[333008275,1721742643695,-515.16255299,0.00010503,2]
[333008277,1721742643705,-150.36157517,0.00010505,2]
[333008279,1721742643715,-515.16255299,0.00010585,2]
[333008281,1721742643724,-254.7111042,0.00010629,2]
[333008283,1721742643734,-644.32770328,0.00010658,2]
[333008285,1721742643744,-644.32770328,0.00010677,2]
[333008287,1721742643755,-644.32770328,0.00010715,2]
[333008289,1721742643772,-221.81021429,0.00010743,2]
[333008291,1721742643782,-19881.0,0.00010781,2]
[333008293,1721742643792,-4089.58145077,0.00010823,2]
[333008295,1721742643802,-150.0,0.00010895,2]
[333008297,1721742643813,-161.16502464,0.000109,2]
[333008299,1721742643823,-182.42849114,0.000109,2]
[333008301,1721742643834,-336.22968108,0.000109,2]
[333008303,1721742643844,-1350.50193908,0.000109,2]
[333008305,1721742643855,-150.36157517,0.00010923,2]
[333008307,1721742643866,-500.0,0.00010958,2]
[333008309,1721742643876,-500.0,0.00010958,2]
[333008311,1721742643887,-500.0,0.00010958,2]
[333008313,1721742643897,-347.95300001,0.00010958,2]
[333008315,1721742643908,-433.18866683,0.00010958,2]
[333008317,1721742643919,-500.0,0.00010958,2]
[333008319,1721742643929,-500.0,0.00010958,2]
[333008321,1721742643939,-500.0,0.00010958,2]
[333008323,1721742643949,-500.0,0.00010958,2]
[333008325,1721742643960,-500.0,0.00010958,2]
[333008328,1721742643970,-502.9954732,0.00010958,2]
[333008331,1721742643979,-500.0,0.00010958,2]
[333008334,1721742643992,-500.0,0.00010958,2]
[333008336,1721742644002,-500.0,0.00010958,2]
[333008338,1721742644021,-500.0,0.00010958,2]
[333008340,1721742644031,-502.22506184,0.00010958,2]
[333008342,1721742644041,-500.0,0.00010958,2]
[333008344,1721742644051,-500.0,0.00010958,2]
[333008346,1721742644061,-500.0,0.00010958,2]
[333008348,1721742644070,-500.0,0.00010958,2]
[333008350,1721742644080,-500.0,0.00010958,2]
[333008353,1721742644089,-500.0,0.00010958,2]
[333008355,1721742644099,-500.0,0.00010958,2]
[333008357,1721742644108,-659.52,0.00010958,2]
[333008359,1721742644118,-500.0,0.00010958,2]
[333008361,1721742644127,-500.0,0.00010958,2]
[333008363,1721742644137,-500.0,0.00010958,2]
[333008365,1721742644147,-500.0,0.00010958,2]
[333008367,1721742644157,-609.85,0.00010958,2]
[333008369,1721742644167,-500.0,0.00010958,2]
[333008370,1721742644176,-500.0,0.00010958,2]
[333008372,1721742644186,-500.0,0.00010958,2]
[333008374,1721742644196,-507.26319296,0.00010958,2]
[333008376,1721742644206,-500.0,0.00010958,2]
[333008378,1721742644215,-700.87595634,0.00010958,2]
[333008380,1721742644225,-500.0,0.00010958,2]
[333008382,1721742644235,-500.0,0.00010958,2]
[333008384,1721742644245,-500.0,0.00010958,2]
[333008386,1721742644254,-500.0,0.00010958,2]
[333008388,1721742644270,-500.0,0.00010958,2]
[333008390,1721742644279,-250.0,0.00010959,2]
[333008392,1721742644289,-500.0,0.00010997,2]
[333008394,1721742644298,-500.0,0.00010997,2]
[333008396,1721742644310,-2908.6301341,0.00010997,2]
[333008398,1721742644319,-500.0,0.00010997,2]
[333008400,1721742644329,-500.0,0.00010997,2]
[333008402,1721742644338,-500.0,0.00010997,2]
[333008404,1721742644348,-500.0,0.00010997,2]
[333008406,1721742644357,-500.0,0.00010997,2]
[333008408,1721742644367,-8376.40953891,0.00010997,2]
[333008410,1721742644376,-620.0,0.00010998,2]
[333008412,1721742644385,-150.0,0.00010998,2]
[333008414,1721742644395,-550.0,0.00010998,2]
[333008416,1721742644405,-156.085,0.00010998,2]
[333008418,1721742644415,-150.218,0.00010998,2]
[333008420,1721742644426,-151.177,0.00010998,2]
[333008422,1721742644436,-500.0,0.00010998,2]
[333008424,1721742644447,-500.0,0.00010998,2]
[333008426,1721742644457,-500.0,0.00010998,2]
[333008428,1721742644467,-500.0,0.00010998,2]
[333008430,1721742644478,-168.85321894,0.00010998,2]
[333008432,1721742644488,-175.77028953,0.00010998,2]
[333008434,1721742644499,-500.0,0.00010998,2]
[333008436,1721742644520,-500.0,0.00010998,2]
[333008438,1721742644531,-500.0,0.00010998,2]
[333008440,1721742644540,-659.52,0.00010998,2]
[333008442,1721742644552,-500.0,0.00010998,2]
[333008444,1721742644562,-561.33000053,0.00010998,2]
[333008446,1721742644572,-606.94,0.00010998,2]
[333008448,1721742644582,-500.0,0.00010998,2]
[333008450,1721742644592,-500.0,0.00010999,2]
[333008452,1721742644602,-500.0,0.00010999,2]
[333008454,1721742644612,-500.0,0.00010999,2]
[333008456,1721742644622,-500.0,0.00010999,2]
[333008458,1721742644632,-500.0,0.00010999,2]
[333008460,1721742644642,-523.11624677,0.00010999,2]
[333008462,1721742644652,-500.0,0.00010999,2]
[333008464,1721742644662,-500.0,0.00010999,2]
[333008466,1721742644672,-226.92,0.00010999,2]
[333008468,1721742644682,-591.79,0.00010999,2]
[333008470,1721742644691,-500.0,0.00010999,2]
[333008472,1721742644701,-500.0,0.00010999,2]
[333008474,1721742644710,-180.07,0.00010999,2]
[333008476,1721742644719,-500.0,0.00010999,2]
[333008478,1721742644728,-500.0,0.00010999,2]
[333008480,1721742644737,-500.0,0.00010999,2]
[333008482,1721742644747,-500.0,0.00010999,2]
[333008484,1721742644761,-500.0,0.00010999,2]
[333008485,1721742644775,-500.0,0.00010999,2]
[333008487,1721742644785,-500.0,0.00010999,2]
[333008489,1721742644795,-500.0,0.00010999,2]
[333008492,1721742644805,-500.0,0.00010999,2]
[333008494,1721742644815,-500.0,0.00010999,2]
[333008496,1721742644824,-610.37620477,0.00010999,2]
[333008498,1721742644834,-500.0,0.00010999,2]
[333008500,1721742644844,-649.90999999,0.00010999,2]
[333008502,1721742644853,-500.0,0.00010999,2]
[333008504,1721742644864,-377.43,0.00010999,2]
[333008506,1721742644873,-500.0,0.00010999,2]
[333008508,1721742644883,-500.0,0.00010999,2]
[333008510,1721742644892,-577.21,0.00010999,2]
[333008512,1721742644905,-924.1,0.00010999,2]
[333008514,1721742644915,-500.0,0.00010999,2]
[333008516,1721742644924,-500.0,0.00010999,2]
[333008518,1721742644934,-500.0,0.00010999,2]
[333008520,1721742644943,-500.0,0.00010999,2]
[333008522,1721742644954,-500.0,0.00010999,2]
[333008524,1721742644963,-500.0,0.00010999,2]
[333008526,1721742644972,-500.0,0.00010999,2]
[333008528,1721742644981,-500.0,0.00010999,2]
[333008530,1721742644992,-500.0,0.00010999,2]
[333008532,1721742645002,-574.56,0.00010999,2]
[333008534,1721742645017,-500.0,0.00010999,2]
[333008536,1721742645026,-500.0,0.00010999,2]
[333008538,1721742645035,-500.0,0.00010999,2]
[333008540,1721742645044,-500.0,0.00010999,2]
[333008542,1721742645053,-500.0,0.00010999,2]
[333008544,1721742645063,-217.21,0.00010999,2]
[333008545,1721742645071,-500.0,0.00010999,2]
[333008547,1721742645081,-500.0,0.00010999,2]
[333008550,1721742645093,-500.0,0.00010999,2]
[333008551,1721742645102,-500.0,0.00010999,2]
[333008552,1721742645111,-605.27,0.00010999,2]
[333008553,1721742645120,-635.96,0.00010999,2]
[333008554,1721742645129,-500.0,0.00010999,2]
[333008555,1721742645138,-500.0,0.00010999,2]
[333008556,1721742645147,-500.0,0.00010999,2]
[333008557,1721742645157,-330.73,0.00010999,2]
[333008558,1721742645167,-659.52,0.00010999,2]
[333008559,1721742645177,-659.52,0.00010999,2]
[333008560,1721742645187,-659.52,0.00010999,2]
[333008561,1721742645198,-659.52,0.00010999,2]
[333008562,1721742645209,-659.52,0.00010999,2]
[333008563,1721742645219,-659.52,0.00010999,2]
[333008564,1721742645229,-659.52,0.00010999,2]
[333008565,1721742645238,-659.52,0.00010999,2]
[333008566,1721742645248,-659.52,0.00010999,2]
[333008567,1721742645262,-659.52,0.00010999,2]
[333008568,1721742645271,-659.52,0.00010999,2]
[333008570,1721742645281,-659.52,0.00010999,2]
[333008571,1721742645290,-659.52,0.00010999,2]
[333008573,1721742645300,-659.52,0.00010999,2]
[333008575,1721742645309,-659.52,0.00010999,2]
[333008577,1721742645319,-659.52,0.00010999,2]
[333008579,1721742645328,-659.52,0.00010999,2]
[333008581,1721742645337,-659.52,0.00010999,2]
[333008583,1721742645347,-659.52,0.00010999,2]
[333008585,1721742645356,-659.52,0.00010999,2]
[333008587,1721742645365,-659.52,0.00010999,2]
[333008589,1721742645375,-659.7,0.00010999,2]
[333008591,1721742645384,-500.0,0.00010999,2]
[333008593,1721742645393,-500.0,0.00010999,2]
[333008595,1721742645402,-500.0,0.00010999,2]
[333008596,1721742645411,-500.0,0.00010999,2]
[333008598,1721742645420,-500.0,0.00010999,2]
[333008600,1721742645430,-500.0,0.00010999,2]
[333008602,1721742645440,-500.0,0.00010999,2]
[333008604,1721742645449,-500.0,0.00010999,2]
[333008606,1721742645459,-500.0,0.00010999,2]
[333008608,1721742645469,-500.0,0.00010999,2]
[333008610,1721742645478,-189.47,0.00010999,2]
[333008612,1721742645487,-500.0,0.00010999,2]
[333008614,1721742645497,-500.0,0.00010999,2]
[333008616,1721742645510,-500.0,0.00010999,2]
[333008618,1721742645519,-500.0,0.00010999,2]
[333008620,1721742645528,-560.43792439,0.00010999,2]
[333008622,1721742645538,-500.0,0.00010999,2]
[333008624,1721742645547,-620.39176026,0.00010999,2]
[333008626,1721742645556,-582.23561616,0.00010999,2]
[333008628,1721742645566,-500.0,0.00010999,2]
[333008630,1721742645575,-500.0,0.00010999,2]
[333008632,1721742645585,-500.0,0.00010999,2]
[333008634,1721742645594,-500.0,0.00010999,2]
[333008636,1721742645603,-500.0,0.00010999,2]
[333008637,1721742645612,-500.0,0.00010999,2]
[333008639,1721742645621,-500.0,0.00010999,2]
[333008641,1721742645631,-500.0,0.00010999,2]
[333008643,1721742645641,-500.0,0.00010999,2]
[333008645,1721742645651,-500.0,0.00010999,2]
[333008647,1721742645660,-500.0,0.00010999,2]
[333008649,1721742645670,-500.0,0.00010999,2]
[333008651,1721742645680,-500.0,0.00010999,2]
[333008653,1721742645690,-310.88398919,0.00010999,2]
[333008655,1721742645699,-500.0,0.00010999,2]
[333008657,1721742645708,-500.0,0.00010999,2]
[333008659,1721742645718,-500.0,0.00010999,2]
[333008661,1721742645727,-500.0,0.00010999,2]
[333008663,1721742645736,-500.0,0.00010999,2]
[333008665,1721742645746,-500.0,0.00010999,2]
[333008667,1721742645756,-500.0,0.00010999,2]
[333008669,1721742645770,-626.27,0.00010999,2]
[333008671,1721742645779,-563.0,0.00011,2]
[333008673,1721742645790,-117506.64823411,0.00011,2]
[333008676,1721742645804,-704.09202264,0.00011,2]
[333008678,1721742645815,-270.00679746,0.00011,2]
[333008681,1721742645835,-23802.92957847,0.00011,2]
[333008683,1721742645852,-20439.95268357,0.00011,2]
[333008686,1721742645863,-382.87373773,0.00011,2]
[333008688,1721742645875,-1794.18698479,0.00011,2]
[333008892,1721742648491,-228.886,0.00010998,2]
[333008894,1721742648501,-1314.20013535,0.00011,2]
[333008899,1721742648527,-25600.61538751,0.00011,2]
[333008902,1721742648540,-950.81443091,0.00011,2]
[333008905,1721742648554,-1331.13658926,0.00011,2]
[333008909,1721742648567,-1657.25362323,0.00011,2]
[333008919,1721742648614,-865.30000001,0.00011,2]
[333008923,1721742648632,-884.999985,0.00011,2]
[333008928,1721742648653,-10458.29202936,0.00011,2]
[333008932,1721742648677,-976.23531354,0.00011,2]
[333008948,1721742648772,-1644.15644672,0.00011,2]
[333008951,1721742648786,-1357.39566243,0.00011,2]
[333008953,1721742648799,-2210.0,0.00011,2]
[333008957,1721742648821,-34314.1017464,0.00011,2]
[333008961,1721742648834,-1780.43176568,0.00011,2]
[333008998,1721742649056,-332.025,0.00011,2]
[333009002,1721742649085,-5926.85085799,0.00011,2]
[333009004,1721742649097,-2392.9161136,0.00011,2]
[333009006,1721742649110,-920.11067912,0.00011,2]
[333009010,1721742649133,-1200.5,0.00011,2]
[333010247,1721743193468,383.59,8.219e-05,2]
[333010248,1721743274590,7569.57134672,8.219e-05,2]
[333010264,1721743715706,79115.50801135,8.219e-05,2]
[333010265,1721743723524,10563.40727305,8.219e-05,2]
[333010308,1721743833606,-153.78556041,9.359e-05,2]
[333010309,1721743833616,-154.38946821,9.375e-05,2]
[333010310,1721743833625,-229.23999378,9.408e-05,2]
[333010311,1721743833635,-136.5849776,9.428e-05,2]
[333010312,1721743833656,-134.12467395,9.428e-05,2]
[333010313,1721743833666,-226.53722469,9.459e-05,2]
[333010314,1721743833675,-536.93975273,9.483e-05,2]
[333010315,1721743833684,-156.25029752,9.487e-05,2]
[333010316,1721743833939,-153.78556041,9.507e-05,2]
[333010317,1721743833953,-156.25029752,9.522e-05,2]
[333010318,1721743833963,-154.38946821,9.531e-05,2]
[333010319,1721743833974,-270.70965155,9.701e-05,2]
[333010320,1721743833984,-153.77388828,9.71e-05,2]
[333010321,1721743833994,-536.93975273,9.714e-05,2]
[333010322,1721743834007,-499.99,9.721e-05,2]
[333010323,1721743834018,-692.19,9.722e-05,2]
[333010324,1721743834028,-536.93975273,9.759e-05,2]
[333010325,1721743834038,-229.23999378,9.76e-05,2]
[333010326,1721743834048,-429.30212749,9.794e-05,2]
[333010327,1721743834059,-153.77388828,9.809e-05,2]
[333010328,1721743834069,-229.23999378,9.822e-05,2]
[333010329,1721743834079,-150.3588316,9.901e-05,2]
[333010330,1721743834090,-153.77388828,9.98e-05,2]
[333010331,1721743834100,-226.53722469,0.00010074,2]
[333010332,1721743834110,-1000.0,0.00010079,2]
[333010333,1721743834120,-150.3588316,0.0001009,2]
[333010334,1721743834130,-150.0,0.0001009,2]
[333010335,1721743834140,-229.23999378,0.000101,2]
[333010336,1721743834152,-150.3588316,0.00010106,2]
[333010337,1721743834162,-167.08158442,0.00010123,2]
[333010338,1721743834172,-270.70965155,0.00010127,2]
[333010339,1721743834182,-153.77388828,0.00010292,2]
[333010340,1721743834192,-156.25029752,0.00010311,2]
[333010341,1721743834203,-184.81052073,0.00010366,2]
[333010342,1721743834213,-400.0,0.000104,3]
[333010343,1721743834223,-226.53722469,0.000104,2]
[333010344,1721743834233,-260.19351009,0.00010429,7]
[333010345,1721743834246,-429.30212749,0.00010436,2]
[333010346,1721743834263,-383.59,0.00010446,2]
[333010347,1721743834273,-150.36157517,0.0001045,2]
[333010348,1721743834284,-153.78556041,0.00010456,2]
[333010349,1721743834294,-800.0,0.000105,3]
[333010350,1721743834304,-160.45083347,0.00010502,2]
[333010351,1721743834314,-429.30212749,0.00010513,2]
[333010352,1721743834326,-153.77388828,0.00010557,2]
[333010353,1721743834336,-152.0,0.00010572,3]
[333010354,1721743834345,-1300.0,0.000106,3]
[333010355,1721743834355,-229.23999378,0.00010601,2]
[333010356,1721743834365,-1700.0,0.000107,3]
[333010357,1721743834375,-156.25029752,0.000107,2]
[333010358,1721743834384,-161.67322201,0.00010705,2]
[333010359,1721743834394,-2485.829,0.0001072,2]
[333010360,1721743834403,-2961.903,0.0001072,2]
[333010361,1721743834413,-1202.0,0.0001072,2]
[333010362,1721743834422,-429.30212749,0.00010741,2]
[333010363,1721743834432,-156.25029752,0.00010773,2]
[333010364,1721743834441,-152.0,0.00010793,4]
[333010365,1721743834451,-156.02826447,0.00010795,2]
[333010366,1721743834460,-2200.0,0.000108,3]
[333010367,1721743834470,-528.0,0.000108,2]
[333010368,1721743834479,-229.23999378,0.00010863,2]
[333010369,1721743834489,-8174.65737933,0.0001089,2]
[333010370,1721743834498,-192.79297582,0.000109,2]
[333010371,1721743834512,-3950.2188,0.000109,2]
[333010372,1721743834522,-400.0,0.000109,3]
[333010373,1721743834532,-224.15312072,0.000109,2]
[333010374,1721743834541,-250.0,0.00010959,2]
[333010375,1721743834551,-1423.57923252,0.00010997,2]
[333010376,1721743834560,-199.442,0.00010998,2]
[333010377,1721743834570,-193.746,0.00010998,2]
[333010378,1721743834579,-206.27,0.00010998,2]
[333010379,1721743834589,-250.0,0.00010998,2]
[333010380,1721743834598,-1254.0,0.00010998,2]
[333010381,1721743834608,-1829.0,0.00010998,2]
[333010382,1721743834617,-234.362,0.00010998,2]
[333010383,1721743834627,-500.0,0.00010999,2]
[333010384,1721743834636,-500.0,0.00010999,2]
[333010385,1721743834646,-500.0,0.00010999,2]
[333010386,1721743834655,-378.95,0.00010999,2]
[333010387,1721743834665,-500.0,0.00010999,2]
[333010388,1721743834674,-500.0,0.00010999,2]
[333010389,1721743834683,-478.41280839,0.00010999,2]
[333010390,1721743834692,-885.59,0.00010999,2]
[333010391,1721743834702,-449.27901062,0.00010999,2]
[333010392,1721743834712,-500.0,0.00010999,2]
[333010393,1721743834723,-500.0,0.00010999,2]
[333010394,1721743834733,-500.0,0.00010999,2]
[333010395,1721743834743,-500.0,0.00010999,2]
[333010396,1721743834755,-500.0,0.00010999,2]
[333010397,1721743834765,-500.0,0.00010999,2]
[333010398,1721743834775,-500.0,0.00010999,2]
[333010399,1721743834784,-500.0,0.00010999,2]
[333010400,1721743834794,-500.0,0.00010999,2]
[333010401,1721743834803,-500.0,0.00010999,2]
[333010402,1721743834813,-500.0,0.00010999,2]
[333010403,1721743834822,-500.0,0.00010999,2]
[333010404,1721743834832,-500.0,0.00010999,2]
[333010405,1721743834841,-500.0,0.00010999,2]
[333010406,1721743834851,-500.0,0.00010999,2]
[333010407,1721743834860,-500.0,0.00010999,2]
[333010408,1721743834870,-500.0,0.00010999,2]
[333010409,1721743834879,-527.72,0.00010999,2]
[333010410,1721743834889,-500.0,0.00010999,2]
[333010411,1721743834898,-500.0,0.00010999,2]
[333010412,1721743834907,-500.0,0.00010999,2]
[333010413,1721743834918,-500.0,0.00010999,2]
[333010414,1721743834927,-500.0,0.00010999,2]
[333010415,1721743834936,-462.85631896,0.00010999,2]
[333010416,1721743834946,-500.0,0.00010999,2]
[333010417,1721743834955,-500.0,0.00010999,2]
[333010418,1721743834964,-501.12569932,0.00010999,2]
[333010419,1721743834974,-500.0,0.00010999,2]
[333010420,1721743834984,-188.47,0.00010999,2]
[333010421,1721743834993,-711.0,0.00011,2]
[333010422,1721743835004,-166401.3705027,0.00011,2]
[333010423,1721743835014,-722.0,0.00011,2]
[333010424,1721743835025,-477.13377921,0.00011,2]
[333010425,1721743835034,-1461.14,0.00011,2]
[333010426,1721743835044,-192883.46448708,0.00011,2]
[333010427,1721743835058,-75947.53439917,0.00011,2]
[333010428,1721743835069,-600.0,0.00011,2]
[333010429,1721743835082,-941.26867698,0.00011,2]
[333010430,1721743835093,-781.95019923,0.00011,2]
[333010431,1721743835105,-2130.44985288,0.00011,2]
[333010432,1721743835116,-827.13712285,0.00011,2]
[333010433,1721743835127,-537.363125,0.00011,2]
[333010434,1721743835149,-341.42630098,0.00011,2]
[333010435,1721743835160,-315.04,0.00011,2]
[333010436,1721743835175,-271.2999999,0.00011,2]
[333010437,1721743835188,-821.72,0.00011,2]
[333010438,1721743835199,-418.90217464,0.00011,2]
[333010439,1721743835210,-26444.4,0.00011,2]
[333010440,1721743835221,-3309.15,0.00011,2]
[333010441,1721743835265,-90541.46312399,0.00011,2]
[333010442,1721743835276,-743.47133385,0.00011,2]
[333010443,1721743835288,-20106.10361351,0.00011,2]
[333010451,1721743838453,-5243.22356511,0.00011,2]
[333010452,1721743838512,-3643.60526787,0.00011,2]
[333010453,1721743838567,-7072.08,0.00011,2]
[333010454,1721743838622,-2152.24358496,0.00011,2]
[333010455,1721743838634,-457.01406701,0.00011,2]
[333010456,1721743838688,-1201.63729866,0.00011,2]
[333010457,1721743838752,-646627.91729063,0.00011,2]
[333010458,1721743838764,-816.70025,0.00011,2]
[333010459,1721743838776,-4497.77815347,0.00011,2]
[333010460,1721743838788,-652.16989619,0.00011,2]
[333010461,1721743838814,-1876.43931272,0.00011,2]
[333010462,1721743838826,-531.79482725,0.00011,2]
[333010631,1721743840514,-250.0,0.00010073,2]
[333010632,1721743840524,-75.3242843,0.00011,2]
[333010634,1721743840535,-1043.21965598,0.00011,2]
[333010636,1721743840546,-2997.25848399,0.00011,2]
[333010638,1721743840556,-523.67412409,0.00011,2]
[333010640,1721743840567,-21922.23458186,0.00011,2]
[333010643,1721743840579,-676.47483956,0.00011,2]
[333010666,1721743840810,-1283.9577871,0.00011,2]
[333010668,1721743840821,-522.77982189,0.00011,2]
[333010895,1721743843415,-1000.0,0.00010345,2]
[333010897,1721743843425,-420.3473,0.000109,2]
[333010899,1721743843434,-7202.31482954,0.00011,2]
[333010902,1721743843445,-709.44234774,0.00011,2]
[333010904,1721743843457,-1520.30909019,0.00011,2]
[333010906,1721743843468,-921.92207977,0.00011,2]
[333010908,1721743843480,-1950.40470994,0.00011,2]
[333010910,1721743843491,-1225.80951365,0.00011,2]
[333010922,1721743843597,-2749.18501419,0.00011,2]
[333010924,1721743843609,-630.36197754,0.00011,2]
[333010926,1721743843621,-498.7999998,0.00011,2]
[333010929,1721743843633,-4650.0,0.00011,2]
[333010931,1721743843645,-1448.63415379,0.00011,2]
[333010933,1721743843655,-914.56016102,0.00011,2]
[333010935,1721743843667,-5453.45619711,0.00011,2]
[333010944,1721743843743,-631.22761626,0.00011,2]
[333010946,1721743843754,-3953.81927455,0.00011,2]
[333010949,1721743843770,-1340.55421316,0.00011,2]
[333010951,1721743843781,-1039.9999,0.00011,2]
[333011201,1721743846427,-4370.99245383,0.00011,2]
[333011220,1721743846606,-690.600222,0.00011,2]
[333011224,1721743846621,-898.31109779,0.00011,2]
[333011227,1721743846633,-408.69310808,0.00011,2]